bitfinex/quotes_SOLUSD_20250731
["timestamp","ask_amount","ask_price","bid_price","bid_amount"]
[1753932159708,6.9582614,180.38,180.37,0.06]
[1753932159900,3.76710587,180.38,180.37,0.06]
[1753932164027,6.9582614,180.38,180.37,0.06]
[1753932164700,3.76710587,180.38,180.37,0.06]
[1753932166825,6.9582614,180.38,180.37,0.06]
[1753932167018,23.74294537,180.38,180.37,0.06]
[1753932173747,6.9582614,180.38,180.37,0.06]
[1753932180950,23.74294537,180.38,180.37,0.06]
[1753932185063,20.55178984,180.38,180.37,0.06]
[1753932185237,3.76710587,180.38,180.37,0.06]
[1753932186762,20.55178984,180.38,180.37,0.06]
[1753932187573,23.74294537,180.38,180.37,0.06]
[1753932188962,20.55178984,180.38,180.37,0.06]
[1753932189165,23.74294537,180.38,180.37,0.06]
[1753932212283,28.42031221,180.38,180.37,0.06]
[1753932212460,16.78468397,180.37,180.36,0.06]
[1753932212659,32.55478167,180.37,180.36,0.06]
[1753932215281,27.87360531,180.37,180.36,0.06]
[1753932215582,23.71294537,180.37,180.36,0.06]
[1753932219789,45.31449913,180.37,180.36,0.06]
[1753932219988,32.54987701,180.37,180.36,0.06]
[1753932220290,32.5432705,180.37,180.36,0.06]
[1753932221373,32.54246636,180.37,180.36,0.06]
[1753932227181,24.67674098,180.37,180.36,0.06]
[1753932227592,20.52178984,180.37,180.36,0.06]
[1753932228589,20.55178984,180.37,180.36,0.06]
[1753932229496,23.74294537,180.37,180.36,0.06]
[1753932235293,23.74148318,180.37,180.36,0.06]
[1753932236279,23.74168135,180.37,180.36,0.06]
[1753932236989,20.55052582,180.37,180.36,0.06]
[1753932237978,23.74168135,180.37,180.36,0.06]
[1753932240181,20.55052582,180.37,180.36,0.06]
[1753932240379,23.74168135,180.37,180.36,0.06]
[1753932245689,6.95699738,180.37,180.36,0.06]
[1753932246007,3.76584185,180.37,180.36,0.06]
[1753932258915,0.03,180.37,180.36,0.06]
[1753932266293,3.76707108,180.37,180.36,0.06]
[1753932268114,0.03,180.37,180.36,0.06]
[1753932269131,3.76878999,180.37,180.36,0.06]
[1753932283535,6.95994552,180.37,180.36,0.06]
[1753932283732,3.76878999,180.37,180.36,0.06]
[1753932292933,3.77517157,180.37,180.36,0.06]
[1753932297150,3.77517157,180.37,180.36,3.25115553]
[1753932298027,0.03,180.37,180.36,0.06]
[1753932298229,3.77488011,180.37,180.36,0.06]
[1753932299556,3.77488011,180.37,180.36,3.25115553]
[1753932300169,0.03,180.37,180.36,3.25115553]
[1753932307454,0.03,180.37,180.36,0.06]
[1753932307762,0.03,180.37,180.36,3.25115553]
[1753932307951,0.03,180.37,180.36,0.06]
[1753932308760,3.77142782,180.37,180.36,0.06]
[1753932315565,6.96258335,180.37,180.36,0.06]
[1753932316968,3.77142782,180.37,180.36,0.06]
[1753932322169,0.03,180.37,180.36,0.06]
[1753932322556,3.77079248,180.37,180.36,0.06]
[1753932327274,3.77084483,180.37,180.36,0.06]
[1753932328273,0.03,180.37,180.36,0.06]
[1753932338072,0.03,180.37,180.36,3.25115553]
[1753932339484,0.03,180.37,180.36,0.06]
[1753932351295,0.03,180.37,180.36,3.25115553]
[1753932364603,0.03,180.37,180.36,0.06]
[1753932365898,3.77373004,180.37,180.36,0.06]
[1753932366277,0.03,180.37,180.36,0.06]
[1753932369688,3.77190483,180.37,180.36,0.06]
[1753932370234,6.96306036,180.37,180.36,0.06]
[1753932372494,3.77190483,180.37,180.36,0.06]
[1753932372687,6.96306036,180.37,180.36,0.06]
[1753932375804,23.74774433,180.37,180.36,0.06]
[1753932376119,27.89882406,180.37,180.36,0.06]
[1753932376327,23.74774433,180.37,180.36,0.06]
[1753932380033,44.80293958,180.37,180.36,0.06]
[1753932380235,16.78468397,180.36,180.35,0.06]
[1753932380404,45.29006361,180.36,180.35,0.06]
[1753932381110,40.62782552,180.36,180.35,0.06]
[1753932381936,40.62375415,180.36,180.35,0.06]
[1753932382313,36.48236645,180.36,180.35,0.06]
[1753932383835,23.71774433,180.36,180.35,0.06]
[1753932385136,6.93306036,180.36,180.35,0.06]
[1753932387039,3.74190483,180.36,180.35,0.06]
[1753932387217,6.93306036,180.36,180.35,0.06]
[1753932391850,23.71774433,180.36,180.35,0.06]
[1753932394045,36.48236645,180.36,180.35,0.06]
[1753932397853,36.46509362,180.36,180.35,0.06]
[1753932398960,23.7004715,180.36,180.35,0.06]
[1753932417259,3.724632,180.36,180.35,0.06]
[1753932418653,6.91578753,180.36,180.35,0.06]
[1753932421072,23.7004715,180.36,180.35,0.06]
[1753932436688,23.7004715,180.36,180.35,0.06]
[1753932440505,20.50931597,180.36,180.35,0.06]
[1753932440717,23.7004715,180.36,180.35,0.06]
[1753932442110,27.85245996,180.36,180.35,0.06]
[1753932443115,32.50824996,180.36,180.35,0.06]
[1753932443918,32.53824996,180.36,180.35,0.06]
[1753932446724,36.69077416,180.36,180.35,0.06]
[1753932449417,36.69072009,180.36,180.35,0.06]
[1753932456619,28.3862615,180.36,180.35,0.06]
[1753932458439,32.53678302,180.36,180.35,0.06]
[1753932459134,32.53742168,180.36,180.35,0.06]
[1753932459307,36.6883142,180.36,180.35,0.06]
[1753932461928,32.53734688,180.36,180.35,0.06]
[1753932463232,36.68797122,180.36,180.35,0.06]
[1753932465812,32.53734688,180.36,180.35,0.06]
[1753932477141,36.68901876,180.36,180.35,0.06]
[1753932477334,32.03322876,180.36,180.35,0.06]
[1753932477635,44.79785088,180.36,180.34,0.06]
[1753932477836,32.00293304,180.35,180.34,0.06]
[1753932478642,32.00286347,180.35,180.34,0.06]
[1753932480544,32.00248605,180.35,180.34,0.06]
[1753932483550,32.00332859,180.35,180.34,0.06]
[1753932487962,32.5242725,180.35,180.34,0.06]
[1753932488460,32.53772344,180.35,180.34,0.06]
[1753932489434,28.38586509,180.35,180.34,0.06]
[1753932489754,32.53894904,180.35,180.34,0.06]
[1753932490056,32.02067523,180.35,180.34,0.06]
[1753932492444,32.01942815,180.35,180.34,0.06]
[1753932492649,32.01942815,180.35,180.33,0.06]
[1753932492827,32.53840203,180.34,180.33,0.06]
[1753932495355,32.53674953,180.34,180.33,0.06]
[1753932495941,36.68856722,180.34,180.33,0.06]
[1753932501570,33.49741169,180.34,180.33,0.06]
[1753932501757,36.68856722,180.34,180.33,0.06]
[1753932505867,33.49741169,180.34,180.33,0.06]
[1753932506067,16.71272772,180.34,180.33,0.06]
[1753932506258,3.73778915,180.34,180.33,0.06]
[1753932506767,3.73778915,180.34,180.33,3.25115553]
[1753932506963,0.03,180.36,180.33,3.25115553]
[1753932507163,3.73862239,180.35,180.33,3.25115553]
[1753932507363,0.03,180.36,180.33,3.25115553]
[1753932507549,3.73748894,180.35,180.33,3.25115553]
[1753932507749,0.03,180.36,180.33,3.25115553]
[1753932507966,3.73756628,180.35,180.33,3.25115553]
[1753932508165,0.03,180.36,180.33,3.25115553]
[1753932508552,0.03,180.34,180.33,3.25115553]
[1753932511269,0.03,180.34,180.33,0.06]
[1753932511472,6.95483529,180.34,180.33,0.06]
[1753932514370,3.76367976,180.34,180.33,0.06]
[1753932514957,0.03,180.34,180.33,0.06]
[1753932515167,3.76367976,180.34,180.33,0.06]
[1753932515355,0.03,180.34,180.33,0.06]
[1753932529787,3.76081978,180.34,180.33,0.06]
[1753932534977,0.03,180.34,180.33,0.06]
[1753932535500,3.76017006,180.34,180.33,0.06]
[1753932535699,0.03,180.34,180.33,0.06]
[1753932535876,3.76017006,180.34,180.33,0.06]
[1753932536074,0.03,180.34,180.33,0.06]
[1753932537582,0.03,180.34,180.33,3.25115553]
[1753932541490,0.03,180.36,180.33,3.25115553]
[1753932541691,0.03,180.36,180.35,3.19115553]
[1753932543395,1e-08,180.36,180.35,3.19115553]
[1753932550798,1e-08,180.36,180.35,3.25115553]
[1753932603167,1e-08,180.37,180.35,3.25115553]
[1753932603582,1e-08,180.37,180.36,3.19115553]
[1753932605471,1e-08,180.38,180.36,3.19115553]
[1753932605689,1e-08,180.38,180.37,3.19115553]
[1753932606147,1e-08,180.39,180.37,3.19115553]
[1753932606351,1e-08,180.39,180.38,3.19115553]
[1753932606985,0.03,180.46,180.38,3.19115553]
[1753932607283,3.22115553,180.46,180.41,3.19115553]
[1753932607777,0.03,180.46,180.41,3.19115553]
[1753932610280,3.22115553,180.46,180.41,3.19115553]
[1753932611283,3.73746478,180.45,180.41,3.19115553]
[1753932611460,3.73746478,180.44,180.41,3.19115553]
[1753932611760,3.73746478,180.43,180.41,3.19115553]
[1753932611962,0.03,180.46,180.41,3.19115553]
[1753932612160,3.73695633,180.45,180.41,3.19115553]
[1753932612362,3.73695633,180.44,180.41,3.19115553]
[1753932612575,0.03,180.46,180.41,3.19115553]
[1753932612771,3.73635457,180.45,180.41,3.19115553]
[1753932612969,3.73635457,180.44,180.41,3.19115553]
[1753932613172,0.03,180.46,180.41,3.19115553]
[1753932613472,3.73632825,180.45,180.41,3.19115553]
[1753932613671,3.73632825,180.44,180.41,3.19115553]
[1753932613979,0.03,180.46,180.41,3.19115553]
[1753932614169,3.73580841,180.45,180.41,3.19115553]
[1753932614369,3.73580841,180.44,180.41,3.19115553]
[1753932614691,3.22115553,180.46,180.36,13.31906878]
[1753932614864,0.03,180.44,180.41,3.19115553]
[1753932615194,0.03,180.44,180.36,0.55444666]
[1753932615385,6.92588909,180.43,180.38,3.19115553]
[1753932615585,3.19115553,180.43,180.38,3.19115553]
[1753932615968,3.22115553,180.44,180.39,3.19115553]
[1753932617689,3.19115553,180.43,180.38,3.19115553]
[1753932617993,3.19115553,180.43,180.39,3.19115553]
[1753932618789,3.19115553,180.43,180.35,0.06]
[1753932618990,3.19115553,180.43,180.39,3.19115553]
[1753932620083,3.19115553,180.43,180.38,3.19115553]
[1753932623682,3.19115553,180.43,180.39,3.19115553]
[1753932624699,3.19115553,180.41,180.35,0.06]
[1753932624909,3.19115553,180.39,180.35,0.06]
[1753932625272,3.19115553,180.4,180.35,3.25115553]
[1753932625884,2.95115553,180.4,180.35,3.25115553]
[1753932626075,2.95115553,180.4,180.35,0.06]
[1753932626387,2.95115553,180.4,180.35,3.25115553]
[1753932627788,3.19115553,180.39,180.35,0.06]
[1753932629691,0.03,180.44,180.35,0.06]
[1753932629892,3.19115553,180.39,180.35,0.06]
[1753932633001,3.19115553,180.39,180.35,3.25115553]
[1753932633376,6.92428594,180.4,180.35,3.25115553]
[1753932633578,3.19115553,180.4,180.35,3.25115553]
[1753932636202,3.19115553,180.4,180.35,0.06]
[1753932638395,6.92628186,180.41,180.36,3.19115553]
[1753932638607,3.19115553,180.41,180.36,3.19115553]
[1753932640205,0.03,180.44,180.36,3.19115553]
[1753932640391,6.92771254,180.41,180.36,3.19115553]
[1753932640592,3.19115553,180.41,180.36,3.19115553]
[1753932642304,3.19115553,180.41,180.35,3.25115553]
[1753932642503,3.19115553,180.41,180.36,3.19115553]
[1753932643810,3.19115553,180.41,180.35,3.25115553]
[1753932644105,3.19115553,180.43,180.38,3.19115553]
[1753932644610,3.22115553,180.42,180.37,3.19115553]
[1753932647800,3.22115553,180.42,180.35,0.06]
[1753932647986,3.22115553,180.42,180.37,3.19115553]
[1753932651520,0.03,180.42,180.37,3.19115553]
[1753932652503,3.22115553,180.42,180.37,3.19115553]
[1753932652919,3.19115553,180.4,180.35,3.25115553]
[1753932655014,0.03,180.42,180.36,3.19115553]
[1753932655216,6.9301752,180.41,180.36,3.19115553]
[1753932655523,3.19115553,180.41,180.36,3.19115553]
[1753932656415,3.19115553,180.4,180.35,3.25115553]
[1753932657953,0.03,180.42,180.35,0.06]
[1753932658234,3.19115553,180.37,180.35,0.06]
[1753932660514,0.03,180.42,180.35,0.06]
[1753932660515,3.19115553,180.38,180.35,0.06]
[1753932665753,16.81468397,180.42,180.35,0.06]
[1753932666052,3.19115553,180.39,180.35,0.06]
[1753932666361,3.73831924,180.38,180.35,0.06]
[1753932666526,3.19115553,180.39,180.35,0.06]
[1753932671042,3.19115553,180.38,180.35,0.06]
[1753932674453,3.19115553,180.36,180.35,0.06]
[1753932674667,6.9292668,180.36,180.35,0.06]
[1753932679257,6.92571597,180.36,180.35,0.06]
[1753932681452,3.19115553,180.36,180.35,0.06]
[1753932681960,6.92571597,180.36,180.35,0.06]
[1753932682860,3.19115553,180.36,180.35,0.06]
[1753932683357,6.92571597,180.36,180.35,0.06]
[1753932684064,3.19115553,180.36,180.35,0.06]
[1753932684539,6.92571597,180.36,180.35,0.06]
[1753932684853,3.19115553,180.36,180.35,0.06]
[1753932685363,6.92571597,180.36,180.35,0.06]
[1753932685736,3.19115553,180.36,180.35,0.06]
[1753932686261,6.92571597,180.36,180.35,0.06]
[1753932686939,3.19115553,180.36,180.35,0.06]
[1753932687465,6.92571597,180.36,180.35,0.06]
[1753932687843,3.19115553,180.36,180.35,0.06]
[1753932688359,6.92571597,180.36,180.35,0.06]
[1753932688861,3.19115553,180.36,180.35,0.06]
[1753932689972,36.47113854,180.36,180.35,0.06]
[1753932706877,16.78468397,180.35,180.33,0.06]
[1753932707060,23.70651642,180.34,180.33,0.06]
[1753932717780,27.85783521,180.34,180.33,0.06]
[1753932718593,23.70651642,180.34,180.33,0.06]
[1753932719363,27.85998577,180.34,180.33,0.06]
[1753932722158,32.52818632,180.34,180.33,0.06]
[1753932725887,27.85998577,180.34,180.33,0.06]
[1753932726199,23.70651642,180.34,180.33,0.06]
[1753932731172,20.51536089,180.34,180.33,0.06]
[1753932733887,23.70651642,180.34,180.33,0.06]
[1753932754997,27.86446486,180.34,180.33,0.06]
[1753932755196,32.53266541,180.34,180.33,0.06]
[1753932756097,16.78468397,180.33,180.32,0.06]
[1753932756298,32.5423631,180.33,180.32,0.06]
[1753932759423,32.02194315,180.33,180.31,0.06]
[1753932759608,27.86446486,180.32,180.31,0.06]
[1753932761515,32.53977347,180.32,180.31,0.06]
[1753932765413,32.53535717,180.32,180.31,0.06]
[1753932765614,19.9758395,180.31,180.3,0.06]
[1753932765821,27.86004856,180.31,180.3,0.06]
[1753932766607,32.01287407,180.31,180.3,0.06]
[1753932767226,27.86004856,180.31,180.3,0.06]
[1753932769414,167.81536089,180.31,180.3,0.06]
[1753932769607,171.00651642,180.31,180.3,0.06]
[1753932770916,179.82416008,180.31,180.3,0.06]
[1753932771825,179.82357371,180.31,180.3,0.06]
[1753932772331,175.67504081,180.31,180.3,0.06]
[1753932772511,179.82294313,180.31,180.3,0.06]
[1753932772845,32.52294313,180.31,180.29,0.06]
[1753932773003,176.63058025,180.3,180.29,0.06]
[1753932773337,179.82173578,180.3,180.29,0.06]
[1753932774328,16.78468397,180.29,180.25,0.2]
[1753932774632,19.9758395,180.27,180.25,0.2]
[1753932774840,23.70651642,180.27,180.25,0.2]
[1753932779432,36.47113854,180.27,180.25,0.2]
[1753932780317,23.70651642,180.27,180.25,0.2]
[1753932782639,19.9758395,180.27,180.25,0.2]
[1753932782832,147.3,180.29,180.25,0.2]
[1753932783019,3.72844582,180.28,180.25,0.2]
[1753932783221,147.3,180.29,180.25,0.2]
[1753932783428,147.3,180.29,180.25,3.39115553]
[1753932783721,147.3,180.29,180.25,0.2]
[1753932785236,147.3,180.29,180.25,3.39115553]
[1753932786947,147.3,180.29,180.25,0.2]
[1753932787145,147.3,180.29,180.27,3.19115553]
[1753932787341,147.33,180.35,180.28,3.19115553]
[1753932787544,3.72951531,180.34,180.31,3.19115553]
[1753932787742,147.33,180.35,180.31,3.19115553]
[1753932789441,147.33,180.35,180.25,5.5929483]
[1753932789442,150.52115553,180.35,180.25,5.5929483]
[1753932789741,3.72900739,180.34,180.3,3.19115553]
[1753932789932,150.52115553,180.35,180.3,3.19115553]
[1753932790745,147.33,180.35,180.3,4.9887985]
[1753932790934,152.3187985,180.35,180.3,4.9887985]
[1753932791335,147.33,180.35,180.3,4.9887985]
[1753932792450,147.33,180.35,180.31,4.9887985]
[1753932794550,147.33,180.35,180.25,5.5929483]
[1753932794755,147.33,180.35,180.31,4.9887985]
[1753932795552,152.3187985,180.35,180.3,4.9887985]
[1753932796549,147.33,180.35,180.3,4.9887985]
[1753932796850,147.33,180.35,180.31,4.9887985]
[1753932797229,152.3187985,180.35,180.3,4.9887985]
[1753932799754,147.33,180.35,180.31,4.9887985]
[1753932802056,152.3187985,180.35,180.3,4.9887985]
[1753932805152,147.33,180.35,180.25,5.5929483]
[1753932805472,147.33,180.35,180.32,4.9887985]
[1753932805839,0.03,180.35,180.33,4.9887985]
[1753932806854,0.03,180.35,180.32,4.9887985]
[1753932809765,0.03,180.35,180.33,4.9887985]
[1753932810645,0.03,180.35,180.34,4.9887985]
[1753932810846,0.03,180.35,180.34,3.19155972]
[1753932813080,0.03,180.35,180.33,3.19155972]
[1753932814066,0.03,180.35,180.32,3.19155972]
[1753932814272,0.03,180.35,180.31,3.19155972]
[1753932814968,0.03,180.35,180.32,3.19155972]
[1753932815148,3.22155972,180.35,180.29,0.06]
[1753932815351,3.19155972,180.34,180.29,0.06]
[1753932815561,3.19155972,180.34,180.29,3.25155972]
[1753932815743,3.22155972,180.35,180.3,3.19155972]
[1753932816468,3.19155972,180.34,180.29,3.25155972]
[1753932816661,3.19155972,180.34,180.29,0.06]
[1753932817063,3.19155972,180.33,180.29,0.06]
[1753932818771,4.98994928,180.33,180.29,0.06]
[1753932819561,4.98994928,180.31,180.29,0.06]
[1753932819959,4.98994928,180.3,180.29,0.06]
[1753932822570,21.77463325,180.3,180.29,0.06]
[1753932822773,25.49743182,180.3,180.29,0.06]
[1753932826678,3.72279857,180.3,180.29,0.06]
[1753932826850,151.9499055,180.33,180.29,0.06]
[1753932826851,8.71274785,180.32,180.29,0.06]
[1753932827365,3.72279857,180.31,180.29,0.06]
[1753932828361,147.3,180.33,180.3,4.98994928]
[1753932828574,0.03,180.35,180.32,4.98994928]
[1753932828957,3.75850702,180.35,180.32,4.98994928]
[1753932829175,0.03,180.35,180.32,4.98994928]
[1753932829462,3.75850702,180.35,180.32,4.98994928]
[1753932829676,0.03,180.35,180.32,4.98994928]
[1753932829880,3.75850702,180.35,180.32,4.98994928]
[1753932830077,0.03,180.35,180.33,4.98994928]
[1753932830280,3.75850702,180.35,180.33,4.98994928]
[1753932830470,0.03,180.35,180.33,4.98994928]
[1753932830969,0.03,180.35,180.34,4.98994928]
[1753932835179,0.03,180.35,180.29,0.06]
[1753932835386,0.03,180.35,180.34,4.98994928]
[1753932837575,0.03,180.35,180.33,4.98994928]
[1753932839880,0.03,180.35,180.29,0.06]
[1753932839881,0.03,180.35,180.32,4.98994928]
[1753932843968,0.03,180.35,180.31,4.98994928]
[1753932844175,0.03,180.35,180.32,4.98994928]
[1753932846666,0.03,180.35,180.31,4.98994928]
[1753932848472,0.03,180.35,180.32,4.98994928]
[1753932849404,0.03,180.35,180.29,0.06]
[1753932849572,4.98994928,180.34,180.29,0.06]
[1753932849773,4.98994928,180.34,180.29,5.04994928]
[1753932852393,0.03,180.35,180.29,5.04994928]
[1753932852581,4.98994928,180.34,180.29,5.04994928]
[1753932853583,5.01994928,180.35,180.29,5.04994928]
[1753932854493,5.01994928,180.35,180.3,4.98994928]
[1753932855698,5.01994928,180.35,180.29,5.04994928]
[1753932859001,0.03,180.35,180.3,4.98994928]
[1753932859175,0.03,180.35,180.31,4.98994928]
[1753932859592,0.03,180.35,180.3,4.98994928]
[1753932860190,5.01994928,180.35,180.3,4.98994928]
[1753932860802,0.03,180.35,180.3,4.98994928]
[1753932865192,0.03,180.35,180.31,4.98994928]
[1753932865394,0.03,180.35,180.3,4.98994928]
[1753932867703,0.03,180.35,180.29,5.04994928]
[1753932868407,3.75768959,180.35,180.29,5.04994928]
[1753932868583,0.03,180.35,180.29,5.04994928]
[1753932869403,3.76459933,180.35,180.29,5.04994928]
[1753932870316,0.03,180.35,180.29,5.04994928]
[1753932871105,0.03,180.35,180.3,4.98994928]
[1753932871308,0.03,180.35,180.31,4.98994928]
[1753932871494,0.03,180.35,180.32,4.98994928]
[1753932873208,0.03,180.35,180.33,4.98994928]
[1753932876812,0.03,180.35,180.33,3.1918131]
[1753932877018,0.03,180.35,180.32,3.1918131]
[1753932882413,0.03,180.35,180.29,0.06]
[1753932882709,0.03,180.35,180.31,3.1918131]
[1753932884488,0.03,180.35,180.29,0.06]
[1753932884696,0.03,180.35,180.31,3.1918131]
[1753932886515,0.03,180.35,180.29,0.06]
[1753932886813,0.03,180.35,180.31,3.1918131]
[1753932890519,0.03,180.35,180.32,3.1918131]
[1753932893025,0.03,180.35,180.29,0.06]
[1753932893203,0.03,180.35,180.32,3.1918131]
[1753932896025,0.03,180.35,180.29,0.06]
[1753932896201,0.03,180.35,180.31,3.1918131]
[1753932902609,3.2218131,180.37,180.34,3.1918131]
[1753932902610,0.03,180.37,180.34,3.1918131]
[1753932902816,0.03,180.37,180.36,3.1918131]
[1753932905655,0.03,180.37,180.33,2.80602897]
[1753932905812,0.03,180.37,180.36,3.1918131]
[1753932907013,0.03,180.37,180.31,16.78468397]
[1753932907213,0.03,180.37,180.36,3.1918131]
[1753932907623,0.03,180.37,180.3,23.77874169]
[1753932907810,0.03,180.37,180.35,3.1918131]
[1753932908912,0.03,180.37,180.36,3.1918131]
[1753932909111,0.03,180.37,180.35,3.1918131]
[1753932909307,0.03,180.37,180.3,23.77874169]
[1753932909514,0.03,180.37,180.34,3.1918131]
[1753932915541,3.1918131,180.36,180.31,3.1918131]
[1753932917619,3.1918131,180.36,180.34,0.06]
[1753932920323,3.1918131,180.35,180.34,0.06]
[1753932930123,0.03,180.37,180.34,0.06]
[1753932930327,3.1918131,180.36,180.34,0.06]
[1753932930540,3.2218131,180.37,180.34,0.06]
[1753932932245,0.03,180.37,180.34,0.06]
[1753932933341,3.2218131,180.37,180.34,0.06]
[1753932935034,0.03,180.37,180.34,0.06]
[1753932937756,3.2218131,180.37,180.34,0.06]
[1753932938138,3.1918131,180.36,180.34,0.06]
[1753932938339,0.03,180.37,180.34,0.06]
[1753932938540,3.1918131,180.36,180.34,0.06]
[1753932942459,0.03,180.37,180.34,0.06]
[1753932942661,3.2218131,180.37,180.34,0.06]
[1753932949670,3.1918131,180.36,180.34,0.06]
[1753932949852,3.1918131,180.35,180.34,0.06]
[1753932952369,3.74094732,180.36,180.34,0.06]
[1753932952576,0.03,180.37,180.34,0.06]
[1753932952875,3.1918131,180.35,180.34,0.06]
[1753932960575,0.03,180.37,180.34,0.06]
[1753932960876,3.1918131,180.35,180.34,0.06]
[1753932963653,6.93392127,180.35,180.34,0.06]
[1753932969395,23.71860524,180.35,180.34,0.06]
[1753932969564,27.87473516,180.35,180.34,0.06]
[1753932969883,32.52464066,180.35,180.34,0.06]
[1753932970478,27.87473516,180.35,180.34,0.06]
[1753932970786,27.87290555,180.35,180.34,0.06]
[1753932971672,6.93392127,180.35,180.34,0.06]
[1753932973286,3.1918131,180.35,180.34,0.06]
[1753932973473,6.93392127,180.35,180.34,0.06]
[1753932973668,3.1918131,180.35,180.34,0.06]
[1753932973876,6.93392127,180.35,180.34,0.06]
[1753932974179,3.1918131,180.35,180.34,0.06]
[1753932974380,6.93392127,180.35,180.34,0.06]
[1753932974860,3.74210817,180.35,180.34,0.06]
[1753932975067,3.1918131,180.35,180.34,0.06]
[1753932975266,6.93392127,180.35,180.34,0.06]
[1753932975561,3.1918131,180.35,180.34,0.06]
[1753932975764,6.93392127,180.35,180.34,0.06]
[1753932976186,3.1918131,180.35,180.34,0.06]
[1753932977372,3.73792969,180.36,180.34,0.06]
[1753932977373,3.1918131,180.36,180.34,0.06]
[1753932982675,3.2218131,180.36,180.34,0.06]
[1753932983303,6.96056794,180.36,180.34,0.06]
[1753932985578,0.03,180.36,180.34,0.06]
[1753932986298,3.2218131,180.36,180.34,0.06]
[1753932987769,0.03,180.36,180.34,0.06]
[1753932988800,3.2218131,180.36,180.34,0.06]
[1753932991599,3.73939328,180.35,180.34,0.06]
[1753932991781,6.93120638,180.35,180.34,0.06]
[1753932997680,23.71589035,180.35,180.34,0.06]
[1753932999605,36.67568553,180.35,180.34,0.06]
[1753933000395,32.52074069,180.35,180.34,0.06]
[1753933003308,27.87083519,180.35,180.34,0.06]
[1753933003902,32.51795672,180.35,180.34,0.06]
[1753933004108,23.71589035,180.35,180.34,0.06]
[1753933010314,6.93120638,180.35,180.34,0.06]
[1753933021431,28.36579585,180.35,180.34,0.06]
[1753933021810,23.71589035,180.35,180.34,0.06]
[1753933022832,6.93120638,180.35,180.34,0.06]
[1753933026342,6.96120638,180.35,180.34,0.06]
[1753933028942,3.76939328,180.35,180.34,0.06]
[1753933029120,6.96120638,180.35,180.34,0.06]
[1753933035642,3.76939328,180.35,180.34,0.06]
[1753933035944,6.96120638,180.35,180.34,0.06]
[1753933037247,3.76939328,180.35,180.34,0.06]
[1753933039338,0.03,180.35,180.34,0.06]
[1753933054756,0.03,180.35,180.27,12.7672524]
[1753933054965,0.03,180.35,180.24,94.89405772]
[1753933055139,0.03,180.35,180.32,3.1918131]
[1753933058164,0.03,180.35,180.27,12.7672524]
[1753933058468,0.03,180.35,180.32,3.1918131]
[1753933059340,0.03,180.35,180.27,12.7672524]
[1753933059545,3.1918131,180.34,180.29,3.1918131]
[1753933059875,3.2218131,180.35,180.29,3.1918131]
[1753933061173,0.03,180.35,180.29,3.1918131]
[1753933061354,0.03,180.35,180.3,3.1918131]
[1753933066047,3.73590451,180.34,180.25,0.2]
[1753933066250,0.03,180.35,180.25,0.2]
[1753933066251,3.73763516,180.33,180.25,0.2]
[1753933066458,6.92944826,180.34,180.28,3.1918131]
[1753933066654,3.1918131,180.34,180.28,3.1918131]
[1753933066859,3.73780137,180.33,180.28,3.1918131]
[1753933067054,3.1918131,180.34,180.28,3.1918131]
[1753933068375,3.73873794,180.33,180.28,3.1918131]
[1753933069077,3.1918131,180.34,180.29,3.1918131]
[1753933069878,0.03,180.35,180.29,3.1918131]
[1753933070065,3.73917153,180.34,180.29,3.1918131]
[1753933070261,3.73975199,180.34,180.29,3.1918131]
[1753933071370,3.2218131,180.35,180.29,3.1918131]
[1753933071571,3.77054451,180.34,180.29,3.1918131]